fUSD/lending_fUSD_20240616
["ID","MTS","AMOUNT","RATE_DAILY","PERIOD"]
[329604875,1718500277847,-500.0,0.00021917,2]
[329604876,1718500277868,-500.0,0.00021917,2]
[329604877,1718500277882,-500.0,0.00021917,2]
[329604878,1718500277916,-500.0,0.00021917,2]
[329604879,1718500277928,-500.0,0.00021917,2]
[329604880,1718500277960,-500.0,0.00021917,2]
[329604881,1718500277972,-500.0,0.00021917,2]
[329604882,1718500277997,-500.0,0.00021917,2]
[329604883,1718500278015,-1566.15,0.00021917,2]
[329604884,1718500278069,-500.0,0.00021917,2]
[329604885,1718500278087,-500.0,0.00021917,2]
[329604886,1718500278101,-500.0,0.00021917,2]
[329604887,1718500278113,-500.0,0.00021917,2]
[329604888,1718500278129,-500.0,0.00021917,2]
[329604889,1718500278149,-500.0,0.00021917,2]
[329604890,1718500278161,-500.0,0.00021917,2]
[329604891,1718500278172,-556.32,0.00021917,2]
[329604892,1718500278184,-500.0,0.00021917,2]
[329604893,1718500278194,-500.0,0.00021917,2]
[329604894,1718500278208,-500.0,0.00021917,2]
[329604895,1718500278239,-617.26,0.00021917,2]
[329604896,1718500278257,-1557.08,0.00021917,2]
[329604897,1718500278273,-740.36,0.00021917,2]
[329604898,1718500278289,-911.54,0.00021917,2]
[329604899,1718500278300,-2208.5,0.00021917,2]
[329604900,1718500278323,-891.72,0.00021917,2]
[329604901,1718500278366,-2208.5,0.00021917,2]
[329604902,1718500278403,-500.0,0.00021917,2]
[329604903,1718500278418,-2208.5,0.00021917,2]
[329604904,1718500278441,-500.0,0.00021917,2]
[329604905,1718500278461,-2208.5,0.00021917,2]
[329604906,1718500278511,-2208.5,0.00021917,2]
[329604907,1718500278526,-539.29101972,0.00021917,2]
[329604908,1718500278550,-1476.81,0.00021917,2]
[329604909,1718500278575,-500.0,0.00021917,2]
[329604910,1718500278592,-2208.5,0.00021917,2]
[329604911,1718500278629,-2208.5,0.00021917,2]
[329604912,1718500278640,-2208.5,0.00021917,2]
[329604913,1718500278656,-500.0,0.00021917,2]
[329604914,1718500278668,-2208.5,0.00021917,2]
[329604915,1718500278685,-500.0,0.00021917,2]
[329604916,1718500278704,-2208.5,0.00021917,2]
[329604917,1718500278725,-500.0,0.00021917,2]
[329604918,1718500278739,-500.0,0.00021917,2]
[329604919,1718500278755,-959.59,0.00021917,2]
[329604920,1718500278775,-2208.5,0.00021917,2]
[329604921,1718500278801,-2208.5,0.00021917,2]
[329604922,1718500278822,-2208.5,0.00021917,2]
[329604923,1718500278855,-2208.5,0.00021917,2]
[329604924,1718500278892,-3411.92,0.00021917,2]
[329604925,1718500278912,-500.0,0.00021917,2]
[329604926,1718500278928,-500.0,0.00021917,2]
[329604927,1718500278942,-500.0,0.00021917,2]
[329604928,1718500278966,-715.6,0.00021917,2]
[329604929,1718500278982,-500.0,0.00021917,2]
[329604930,1718500278994,-500.0,0.00021917,2]
[329604931,1718500279036,-500.0,0.00021917,2]
[329604932,1718500279055,-500.0,0.00021917,2]
[329604933,1718500279091,-500.0,0.00021917,2]
[329604934,1718500279126,-500.0,0.00021917,2]
[329604935,1718500279151,-500.0,0.00021917,2]
[329604936,1718500279176,-500.0,0.00021917,2]
[329604937,1718500279187,-500.0,0.00021917,2]
[329604938,1718500279224,-500.0,0.00021917,2]
[329604939,1718500279244,-500.0,0.00021917,2]
[329604940,1718500279258,-500.0,0.00021917,2]
[329604941,1718500279270,-500.0,0.00021917,2]
[329604942,1718500279284,-500.0,0.00021917,2]
[329604943,1718500279294,-716.84,0.00021917,2]
[329604944,1718500279305,-500.0,0.00021917,2]
[329604945,1718500279315,-9209.12,0.00021917,2]
[329604946,1718500279327,-500.0,0.00021917,2]
[329604947,1718500279338,-500.0,0.00021917,2]
[329604948,1718500279349,-500.0,0.00021917,2]
[329604949,1718500279360,-500.0,0.00021917,2]
[329604950,1718500279381,-500.0,0.00021917,2]
[329604951,1718500279415,-500.0,0.00021917,2]
[329604952,1718500279433,-1858.4,0.00021917,2]
[329604953,1718500279443,-500.0,0.00021917,2]
[329604954,1718500279454,-500.0,0.00021917,2]
[329604955,1718500279464,-500.0,0.00021917,2]
[329604956,1718500279476,-500.0,0.00021917,2]
[329604957,1718500279487,-500.0,0.00021917,2]
[329604958,1718500279508,-500.0,0.00021917,2]
[329604959,1718500279520,-500.0,0.00021917,2]
[329604960,1718500279539,-500.0,0.00021917,2]
[329604961,1718500279550,-500.0,0.00021917,2]
[329604962,1718500279567,-500.0,0.00021917,2]
[329604963,1718500279582,-616.59,0.00021917,2]
[329604964,1718500279609,-500.0,0.00021917,2]
[329604965,1718500279624,-560.46,0.00021917,2]
[329604966,1718500279642,-1029.45,0.00021917,2]
[329604967,1718500279653,-500.0,0.00021917,2]
[329604968,1718500279667,-2193.53,0.00021917,2]
[329604969,1718500279681,-739.07,0.00021917,2]
[329604970,1718500279694,-500.0,0.00021917,2]
[329604971,1718500279707,-500.0,0.00021917,2]
[329604972,1718500279746,-912.6,0.00021917,2]
[329604973,1718500279761,-563.77676974,0.00021917,2]
[329604974,1718500279774,-500.0,0.00021917,2]
[329604975,1718500279806,-500.0,0.00021917,2]
[329604976,1718500279818,-500.0,0.00021917,2]
[329604977,1718500279834,-543.82,0.00021917,2]
[329604978,1718500279855,-500.0,0.00021917,2]
[329604979,1718500279880,-500.0,0.00021917,2]
[329604980,1718500279894,-500.0,0.00021917,2]
[329604981,1718500279906,-500.0,0.00021917,2]
[329604982,1718500279918,-500.0,0.00021917,2]
[329604983,1718500279930,-1095.8,0.00021917,2]
[329604984,1718500279942,-500.0,0.00021917,2]
[329604985,1718500279962,-500.0,0.00021917,2]
[329604986,1718500279972,-1659.54,0.00021917,2]
[329604987,1718500279992,-500.0,0.00021917,2]
[329604988,1718500280007,-500.0,0.00021917,2]
[329604989,1718500280019,-1126.66,0.00021917,2]
[329604990,1718500280035,-639.63,0.00021917,2]
[329604991,1718500280048,-605.83,0.00021917,2]
[329604992,1718500280059,-500.0,0.00021917,2]
[329604993,1718500280078,-500.0,0.00021917,2]
[329604994,1718500280109,-500.0,0.00021917,2]
[329604995,1718500280126,-500.0,0.00021917,2]
[329604996,1718500280136,-1641.23,0.00021917,2]
[329604997,1718500280152,-500.0,0.00021917,2]
[329604998,1718500280169,-1073.33,0.00021917,2]
[329604999,1718500280181,-939.26,0.00021917,2]
[329605000,1718500280193,-500.0,0.00021917,2]
[329605001,1718500280204,-931.47,0.00021917,2]
[329605002,1718500280216,-500.0,0.00021917,2]
[329605003,1718500280227,-500.0,0.00021917,2]
[329605004,1718500280241,-275.97903338,0.00021917,2]
[329605005,1718500280254,-500.0,0.00021917,2]
[329605006,1718500280265,-510.69036905,0.00021917,2]
[329605007,1718500280281,-500.0,0.00021917,2]
[329605008,1718500280292,-635.73,0.00021917,2]
[329605009,1718500280303,-500.0,0.00021917,2]
[329605010,1718500280314,-523.730923,0.00021917,2]
[329605011,1718500280337,-500.0,0.00021917,2]
[329605012,1718500280363,-337.7657165,0.00021917,2]
[329605013,1718500280384,-523.730923,0.00021917,2]
[329605014,1718500280399,-1601.78,0.00021917,2]
[329605015,1718500280432,-523.730923,0.00021917,2]
[329605016,1718500280443,-523.730923,0.00021917,2]
[329605017,1718500280461,-500.0,0.00021917,2]
[329605018,1718500280473,-523.730923,0.00021917,2]
[329605019,1718500280494,-500.0,0.00021917,2]
[329605020,1718500280505,-523.730923,0.00021917,2]
[329605021,1718500280516,-1587.76,0.00021917,2]
[329605022,1718500280535,-500.0,0.00021917,2]
[329605023,1718500280557,-500.0,0.00021917,2]
[329605024,1718500280572,-500.0,0.00021917,2]
[329605025,1718500280583,-1481.49,0.00021917,2]
[329605026,1718500280616,-523.730923,0.00021917,2]
[329605027,1718500280630,-523.730923,0.00021917,2]
[329605028,1718500280647,-523.730923,0.00021917,2]
[329605029,1718500280658,-523.730923,0.00021917,2]
[329605030,1718500280668,-500.0,0.00021917,2]
[329605031,1718500280680,-844.64,0.00021917,2]
[329605032,1718500280691,-523.730923,0.00021917,2]
[329605033,1718500280707,-523.730916,0.00021917,2]
[329605034,1718500280724,-500.0,0.00021917,2]
[329605035,1718500280737,-500.0,0.00021917,2]
[329605036,1718500280753,-563.16,0.00021917,2]
[329605037,1718500280767,-500.0,0.00021917,2]
[329605038,1718500280778,-500.0,0.00021917,2]
[329605039,1718500280798,-500.0,0.00021917,2]
[329605040,1718500280831,-500.0,0.00021917,2]
[329605041,1718500280844,-500.0,0.00021917,2]
[329605042,1718500280857,-899.57,0.00021917,2]
[329605043,1718500280873,-797.55,0.00021917,2]
[329605044,1718500280894,-1303.62,0.00021917,2]
[329605045,1718500280915,-500.0,0.00021917,2]
[329605046,1718500280927,-500.0,0.00021917,2]
[329605047,1718500280943,-500.0,0.00021917,2]
[329605048,1718500280966,-500.0,0.00021917,2]
[329605049,1718500280993,-500.0,0.00021917,2]
[329605050,1718500281005,-669.61,0.00021917,2]
[329605051,1718500281021,-500.0,0.00021917,2]
[329605052,1718500281033,-500.0,0.00021917,2]
[329605053,1718500281042,-500.0,0.00021917,2]
[329605054,1718500281069,-500.0,0.00021917,2]
[329605055,1718500281086,-500.0,0.00021917,7]
[329605056,1718500281101,-500.0,0.00021917,2]
[329605057,1718500281117,-500.0,0.00021917,2]
[329605058,1718500281144,-500.0,0.00021917,2]
[329605059,1718500281157,-527.00994395,0.00021917,2]
[329605060,1718500281167,-500.0,0.00021917,2]
[329605061,1718500281178,-500.0,0.00021917,2]
[329605062,1718500281189,-307.82412376,0.00021917,2]
[329605063,1718500281202,-500.0,0.00021917,2]
[329605064,1718500281226,-500.0,0.00021917,2]
[329605065,1718500281245,-500.0,0.00021917,2]
[329605066,1718500281256,-500.0,0.00021917,2]
[329605067,1718500281273,-500.0,0.00021917,2]
[329605068,1718500281287,-500.0,0.00021917,2]
[329605069,1718500281298,-500.0,0.00021917,2]
[329605070,1718500281313,-500.0,0.00021917,2]
[329605071,1718500281324,-500.0,0.00021917,2]
[329605072,1718500281339,-500.0,0.00021917,2]
[329605073,1718500281365,-500.0,0.00021917,2]
[329605074,1718500281377,-500.0,0.00021917,2]
[329605075,1718500281565,-500.0,0.00021917,2]
[329605076,1718500281577,-500.0,0.00021917,2]
[329605077,1718500281588,-500.0,0.00021917,2]
[329605078,1718500281599,-500.0,0.00021917,2]
[329605079,1718500281610,-500.0,0.00021917,2]
[329605080,1718500281625,-500.0,0.00021917,2]
[329605081,1718500281668,-682.78,0.00021917,2]
[329605082,1718500281687,-930.8,0.00021917,2]
[329605083,1718500281705,-500.0,0.00021917,2]
[329605084,1718500281729,-962.72,0.00021917,2]
[329605085,1718500281758,-613.32,0.00021917,2]
[329605086,1718500281777,-507.88553374,0.00021917,2]
[329605087,1718500281790,-500.0,0.00021917,2]
[329605088,1718500281803,-500.0,0.00021917,2]
[329605089,1718500281826,-500.0,0.00021917,2]
[329605090,1718500281861,-500.0,0.00021917,2]
[329605091,1718500281877,-500.0,0.00021917,2]
[329605092,1718500281894,-500.0,0.00021917,2]
[329605093,1718500281905,-540.81,0.00021917,2]
[329605094,1718500281915,-4612.85,0.00021917,2]
[329605095,1718500281925,-500.0,0.00021917,2]
[329605096,1718500281936,-658.7,0.00021917,2]
[329605097,1718500281946,-500.0,0.00021917,2]
[329605098,1718500281963,-500.0,0.00021917,2]
[329605099,1718500281974,-543.12,0.00021917,2]
[329605100,1718500281991,-675.53,0.00021917,2]
[329605101,1718500282002,-1119.62,0.00021917,2]
[329605102,1718500282012,-2109.62,0.00021917,2]
[329605103,1718500282023,-2380.87,0.00021917,2]
[329605104,1718500282039,-1146.90826095,0.00021917,2]
[329605105,1718500282050,-500.0,0.00021917,2]
[329605106,1718500282066,-500.0,0.00021917,2]
[329605107,1718500282089,-500.0,0.00021917,2]
[329605108,1718500282100,-544.8,0.00021917,2]
[329605109,1718500282110,-500.0,0.00021917,2]
[329605110,1718500282122,-500.0,0.00021917,2]
[329605111,1718500282132,-500.0,0.00021917,2]
[329605112,1718500282144,-500.0,0.00021917,2]
[329605113,1718500282160,-500.0,0.00021917,2]
[329605114,1718500282170,-500.0,0.00021917,2]
[329605115,1718500282187,-500.0,0.00021917,2]
[329605116,1718500282203,-500.0,0.00021917,2]
[329605117,1718500282220,-500.0,0.00021917,2]
[329605118,1718500282230,-500.0,0.00021917,2]
[329605119,1718500282245,-500.0,0.00021917,2]
[329605120,1718500282256,-500.0,0.00021917,2]
[329605121,1718500282267,-585.02,0.00021917,2]
[329605122,1718500282297,-500.0,0.00021917,2]
[329605123,1718500282309,-525.41229058,0.00021917,2]
[329605124,1718500282323,-500.0,0.00021917,2]
[329605125,1718500282337,-500.0,0.00021917,2]
[329605126,1718500282349,-922.29,0.00021917,2]
[329605127,1718500282360,-500.0,0.00021917,2]
[329605128,1718500282371,-500.0,0.00021917,2]
[329605129,1718500282386,-500.0,0.00021917,2]
[329605130,1718500282397,-554.14,0.00021917,2]
[329605131,1718500282409,-540.2627273,0.00021917,2]
[329605132,1718500282430,-832.03,0.00021917,2]
[329605133,1718500282441,-500.0,0.00021917,2]
[329605134,1718500282452,-500.0,0.00021917,2]
[329605135,1718500282463,-831.93,0.00021917,2]
[329605136,1718500282474,-1266.5,0.00021917,2]
[329605137,1718500282486,-500.0,0.00021917,2]
[329605138,1718500282498,-500.0,0.00021917,2]
[329605139,1718500282513,-500.0,0.00021917,2]
[329605140,1718500282536,-503.47632706,0.00021917,2]
[329605141,1718500282556,-1502.09,0.00021917,2]
[329605142,1718500282570,-911.68,0.00021917,2]
[329605143,1718500282586,-814.64,0.00021917,2]
[329605144,1718500282620,-1214.3,0.00021917,2]
[329605145,1718500282640,-500.0,0.00021917,2]
[329605146,1718500282668,-560.05,0.00021917,2]
[329605147,1718500282690,-504.54647773,0.00021917,2]
[329605148,1718500282702,-500.0,0.00021917,2]
[329605149,1718500282721,-500.0,0.00021917,2]
[329605150,1718500282735,-500.0,0.00021917,2]
[329605151,1718500282749,-500.0,0.00021917,2]
[329605152,1718500282764,-500.0,0.00021917,2]
[329605153,1718500282783,-1461.36,0.00021917,2]
[329605154,1718500282822,-749.61,0.00021917,2]
[329605155,1718500282838,-500.0,0.00021917,2]
[329605156,1718500282851,-500.0,0.00021917,2]
[329605157,1718500282863,-408.35913005,0.00021917,2]
[329605158,1718500282908,-508.54,0.00021917,2]
[329605159,1718500282937,-500.0,0.00021917,2]
[329605160,1718500282948,-500.0,0.00021917,2]
[329605161,1718500282975,-1233.55,0.00021917,2]
[329605162,1718500282987,-1159.77,0.00021917,2]
[329605163,1718500283026,-2076.6,0.00021917,2]
[329605164,1718500283049,-680.45,0.00021917,2]
[329605165,1718500283063,-500.0,0.00021917,2]
[329605166,1718500283089,-518.25455539,0.00021917,2]
[329605167,1718500283105,-1147.87,0.00021917,2]
[329605168,1718500283123,-500.0,0.00021917,2]
[329605169,1718500283134,-500.0,0.00021917,2]
[329605170,1718500283163,-500.0,0.00021917,2]
[329605171,1718500283175,-500.0,0.00021917,2]
[329605172,1718500283200,-527.39664232,0.00021917,2]
[329605173,1718500283237,-1088.61,0.00021917,2]
[329605174,1718500283261,-500.0,0.00021917,2]
[329605175,1718500283352,-466.9,0.00021918,2]
[329605176,1718500283380,-250.0,0.00021918,2]
[329605177,1718500283394,-1387.2,0.00021918,2]
[329605178,1718500283408,-151.0,0.00021918,2]
[329605179,1718500283423,-151.0,0.00021918,2]
[329605180,1718500283435,-151.0,0.00021918,2]
[329605181,1718500283452,-151.0,0.00021918,2]
[329605182,1718500283476,-151.0,0.00021918,2]
[329605183,1718500283491,-151.0,0.00021918,2]
[329605184,1718500283512,-151.0,0.00021918,2]
[329605185,1718500283533,-215.022001,0.00021918,2]
[329605186,1718500283562,-151.940579,0.00021918,2]
[329605187,1718500283580,-150.0,0.00021918,2]
[329605188,1718500283593,-163.10378917,0.00021918,2]
[329605189,1718500283625,-150.0,0.00021918,2]
[329605190,1718500283636,-150.0,0.00021918,2]
[329605191,1718500283653,-150.0,0.00021918,2]
[329605192,1718500283667,-150.0,0.00021918,2]
[329605193,1718500283689,-165.66,0.0002192,2]
[329605194,1718500283700,-165.66,0.0002192,2]
[329605195,1718500283721,-165.66,0.0002192,2]
[329605196,1718500283738,-165.66,0.0002192,2]
[329605197,1718500283758,-150.0,0.00021981,2]
[329605198,1718500283773,-201.50261276,0.00022,3]
[329605199,1718500283822,-790.86878271,0.00022,2]
[329605200,1718500283836,-488.2031189,0.00022,10]
[329605201,1718500283848,-160.0,0.00022,2]
[329605202,1718500283860,-6805.86,0.00022,2]
[329605203,1718500283871,-1809.09,0.00022,2]
[329605204,1718500283885,-111440.64,0.00022,2]
[329605205,1718500283916,-328.7,0.00022,2]
[329605206,1718500283930,-370.0,0.0002205,2]
[329605207,1718500283942,-1534.2907314,0.00022091,2]
[329605208,1718500283956,-642.78,0.00022139,2]
[329605209,1718500283975,-202.0,0.0002218,2]
[329605210,1718500283998,-500.0,0.00022189,3]
[329605211,1718500284022,-521.65,0.00022189,3]
[329605212,1718500284033,-500.0,0.0002219,3]
[329605213,1718500284051,-500.0,0.0002219,3]
[329605214,1718500284081,-500.0,0.0002219,3]
[329605215,1718500284093,-500.0,0.0002219,3]
[329605216,1718500284111,-500.0,0.0002219,3]
[329605217,1718500284124,-500.0,0.0002219,3]
[329605218,1718500284135,-500.0,0.0002219,3]
[329605219,1718500284147,-521.65,0.0002219,3]
[329605220,1718500284180,-521.65,0.0002219,3]
[329605221,1718500284201,-521.65,0.0002219,3]
[329605222,1718500284218,-2208.5,0.0002219,3]
[329605223,1718500284231,-2208.5,0.0002219,3]
[329605224,1718500284251,-2208.5,0.0002219,3]
[329605225,1718500284263,-2208.5,0.0002219,3]
[329605226,1718500284274,-500.0,0.0002219,3]
[329605227,1718500284294,-500.0,0.0002219,3]
[329605228,1718500284306,-500.0,0.0002219,3]
[329605229,1718500284319,-500.0,0.0002219,3]
[329605230,1718500284331,-150.0,0.0002219,2]
[329605231,1718500284343,-150.0,0.0002219,10]
[329605232,1718500284355,-150.0,0.0002219,10]
[329605233,1718500284371,-500.0,0.00022191,3]
[329605234,1718500284399,-425.04584842,0.00022191,3]
[329605235,1718500284422,-500.0,0.00022191,3]
[329605236,1718500284437,-500.0,0.00022191,3]
[329605237,1718500284456,-500.0,0.00022191,3]
[329605238,1718500284475,-500.0,0.00022191,3]
[329605239,1718500284513,-500.0,0.00022191,3]
[329605240,1718500284525,-500.0,0.00022191,3]
[329605241,1718500284548,-500.0,0.00022191,3]
[329605242,1718500284572,-500.0,0.00022191,3]
[329605243,1718500284600,-500.0,0.00022191,3]
[329605244,1718500284614,-509.49748046,0.00022191,3]
[329605245,1718500284627,-500.0,0.00022191,3]
[329605246,1718500284664,-500.0,0.00022191,3]
[329605247,1718500284684,-500.0,0.00022191,3]
[329605248,1718500284700,-500.0,0.00022191,3]
[329605249,1718500284714,-297.53947151,0.00022191,3]
[329605250,1718500284736,-500.0,0.00022191,3]
[329605251,1718500284752,-500.0,0.00022191,3]
[329605252,1718500284778,-569.2439793,0.00022191,3]
[329605253,1718500284792,-500.0,0.00022191,3]
[329605254,1718500284814,-377.15288166,0.00022191,3]
[329605255,1718500284828,-500.0,0.00022191,3]
[329605256,1718500284853,-500.0,0.00022191,3]
[329605257,1718500284866,-496.75865701,0.00022191,3]
[329605258,1718500284889,-506.06339179,0.00022191,3]
[329605259,1718500284907,-544.51739149,0.00022191,3]
[329605260,1718500284930,-216.24809374,0.00022191,3]
[329605261,1718500284959,-500.0,0.00022191,3]
[329605262,1718500284975,-500.0,0.00022191,3]
[329605263,1718500284997,-500.0,0.00022191,3]
[329605264,1718500285018,-500.0,0.00022191,3]
[329605265,1718500285033,-500.0,0.00022191,3]
[329605266,1718500285057,-500.0,0.00022191,3]
[329605267,1718500285072,-500.0,0.00022191,3]
[329605268,1718500285085,-500.0,0.00022191,3]
[329605269,1718500285103,-500.0,0.00022191,3]
[329605270,1718500285124,-298.69441656,0.00022191,3]
[329605271,1718500285156,-500.0,0.00022191,3]
[329605272,1718500285170,-500.0,0.00022191,3]
[329605273,1718500285196,-500.0,0.00022191,3]
[329605274,1718500285208,-500.0,0.00022191,3]
[329605275,1718500285219,-500.0,0.00022191,3]
[329605276,1718500285233,-500.0,0.00022191,3]
[329605277,1718500285244,-500.0,0.00022191,3]
[329605278,1718500285265,-500.0,0.00022191,3]
[329605279,1718500285292,-500.0,0.00022191,3]
[329605280,1718500285305,-500.0,0.00022191,3]
[329605281,1718500285329,-500.0,0.00022191,3]
[329605282,1718500285354,-500.0,0.00022191,3]
[329605283,1718500285373,-500.0,0.00022191,3]
[329605284,1718500285387,-500.0,0.00022191,3]
[329605285,1718500285400,-500.0,0.00022191,3]
[329605286,1718500285420,-944.96,0.00022191,3]
[329605287,1718500285448,-360.31375977,0.00022191,3]
[329605288,1718500285459,-500.0,0.00022191,3]
[329605289,1718500285476,-500.0,0.00022191,3]
[329605290,1718500285487,-500.0,0.00022191,3]
[329605291,1718500285498,-500.0,0.00022191,3]
[329605292,1718500285511,-722.17,0.00022191,3]
[329605293,1718500285523,-519.58306681,0.00022191,3]
[329605294,1718500285536,-500.0,0.00022191,3]
[329605295,1718500285547,-500.0,0.00022191,3]
[329605296,1718500285570,-500.0,0.00022191,3]
[329605297,1718500285583,-500.0,0.00022191,3]
[329605298,1718500285594,-500.0,0.00022191,3]
[329605299,1718500285608,-500.0,0.00022191,3]
[329605300,1718500285620,-500.0,0.00022191,3]
[329605301,1718500285649,-500.0,0.00022191,3]
[329605302,1718500285663,-500.0,0.00022191,3]
[329605303,1718500285680,-500.0,0.00022191,3]
[329605304,1718500285715,-500.0,0.00022191,3]
[329605305,1718500285726,-500.0,0.00022191,3]
[329605306,1718500285762,-500.0,0.00022191,3]
[329605307,1718500285774,-500.0,0.00022191,3]
[329605308,1718500285789,-500.0,0.00022191,3]
[329605309,1718500285802,-500.0,0.00022191,3]
[329605310,1718500285814,-500.0,0.00022191,3]
[329605311,1718500285825,-500.0,0.00022191,3]
[329605312,1718500285849,-503.63663147,0.00022191,3]
[329605313,1718500285877,-500.0,0.00022191,3]
[329605314,1718500285897,-576.41504321,0.00022191,3]
[329605315,1718500285924,-500.0,0.00022191,3]
[329605316,1718500285936,-500.0,0.00022191,3]
[329605317,1718500285955,-500.0,0.00022191,3]
[329605318,1718500285973,-500.0,0.00022191,3]
[329605319,1718500285984,-500.0,0.00022191,3]
[329605320,1718500285994,-500.0,0.00022191,3]
[329605321,1718500286010,-200.0,0.00022191,3]
[329605322,1718500286025,-500.0,0.00022191,3]
[329605323,1718500286038,-500.0,0.00022191,3]
[329605324,1718500286050,-500.0,0.00022191,3]
[329605325,1718500286062,-500.0,0.00022191,3]
[329605326,1718500286089,-500.0,0.00022191,3]
[329605327,1718500286099,-500.0,0.00022191,3]
[329605328,1718500286111,-500.0,0.00022191,3]
[329605329,1718500286125,-500.0,0.00022191,3]
[329605330,1718500286142,-500.0,0.00022191,3]
[329605331,1718500286160,-500.0,0.00022191,3]
[329605332,1718500286172,-776.85,0.00022191,3]
[329605333,1718500286189,-500.0,0.00022191,3]
[329605334,1718500286201,-500.0,0.00022191,3]
[329605335,1718500286221,-500.0,0.00022191,3]
[329605336,1718500286234,-500.0,0.00022191,3]
[329605337,1718500286251,-500.0,0.00022191,3]
[329605338,1718500286279,-500.0,0.00022191,3]
[329605339,1718500286293,-500.0,0.00022191,3]
[329605340,1718500286304,-616.35770606,0.00022191,3]
[329605341,1718500286315,-500.0,0.00022191,3]
[329605342,1718500286328,-511.72629292,0.00022191,3]
[329605343,1718500286368,-500.0,0.00022191,3]
[329605344,1718500286386,-500.0,0.00022191,3]
[329605345,1718500286409,-500.0,0.00022191,3]
[329605346,1718500286444,-500.0,0.00022191,3]
[329605347,1718500286464,-500.0,0.00022191,3]
[329605348,1718500286476,-500.0,0.00022191,3]
[329605349,1718500286504,-500.0,0.00022191,3]
[329605350,1718500286534,-500.0,0.00022191,3]
[329605351,1718500286555,-542.77,0.00022191,3]
[329605352,1718500286582,-506.56653173,0.00022191,3]
[329605353,1718500286593,-500.0,0.00022191,3]
[329605354,1718500286605,-255.69405596,0.00022191,3]
[329605355,1718500286626,-500.0,0.00022191,3]
[329605356,1718500286644,-500.0,0.00022191,3]
[329605357,1718500286656,-500.0,0.00022191,3]
[329605358,1718500286669,-500.0,0.00022191,3]
[329605359,1718500286692,-500.0,0.00022191,3]
[329605360,1718500286703,-500.0,0.00022191,3]
[329605361,1718500286719,-500.0,0.00022191,3]
[329605362,1718500286734,-554.16,0.00022191,3]
[329605363,1718500286746,-203.92633743,0.00022191,3]
[329605364,1718500286760,-500.0,0.00022191,3]
[329605365,1718500286781,-1070.41,0.00022191,3]
[329605366,1718500286793,-500.0,0.00022191,3]
[329605367,1718500286982,-500.0,0.00022191,3]
[329605368,1718500286994,-532.71,0.00022191,3]
[329605369,1718500287012,-500.0,0.00022191,3]
[329605370,1718500287029,-500.0,0.00022191,3]
[329605371,1718500287046,-500.0,0.00022191,3]
[329605372,1718500287058,-500.0,0.00022191,3]
[329605373,1718500287080,-532.38040548,0.00022191,3]
[329605374,1718500287092,-500.0,0.00022191,3]